fUSD/lending_fUSD_20240925
["ID","MTS","AMOUNT","RATE_DAILY","PERIOD"]
[339098165,1727243442465,-1000.0,0.0001267,2]
[339098167,1727243442474,-1000.0,0.0001267,2]
[339098168,1727243442483,-1000.0,0.0001267,2]
[339098170,1727243442492,-1000.0,0.0001267,2]
[339098172,1727243442501,-1000.0,0.0001267,2]
[339098174,1727243442510,-1000.0,0.0001267,2]
[339098176,1727243442519,-1000.0,0.0001267,2]
[339098178,1727243442528,-1000.0,0.0001267,2]
[339098179,1727243442537,-1000.0,0.0001267,2]
[339098181,1727243442547,-1000.0,0.0001267,2]
[339098183,1727243442556,-1000.0,0.0001267,2]
[339098185,1727243442564,-1000.0,0.0001267,2]
[339098187,1727243442573,-1000.0,0.0001267,2]
[339098189,1727243442583,-1000.0,0.0001267,2]
[339098191,1727243442592,-1000.0,0.0001267,2]
[339098193,1727243442601,-1000.0,0.0001267,2]
[339098194,1727243442610,-1000.0,0.0001267,2]
[339098196,1727243442619,-1000.0,0.0001267,2]
[339098198,1727243442627,-1000.0,0.0001267,2]
[339098200,1727243442637,-1000.0,0.0001267,2]
[339098202,1727243442646,-1000.0,0.0001267,2]
[339098204,1727243442655,-1000.0,0.0001267,2]
[339098205,1727243442665,-1000.0,0.0001267,2]
[339098207,1727243442677,-1000.0,0.0001267,2]
[339098209,1727243442688,-1000.0,0.0001267,2]
[339098211,1727243442698,-1000.0,0.0001267,2]
[339098213,1727243442707,-1000.0,0.0001267,2]
[339098215,1727243442717,-1000.0,0.0001267,2]
[339098218,1727243442727,-1000.0,0.0001267,2]
[339098221,1727243442735,-1000.0,0.0001267,2]
[339098224,1727243442744,-1000.0,0.0001267,2]
[339098227,1727243442755,-1000.0,0.0001267,2]
[339098229,1727243442764,-1000.0,0.0001267,2]
[339098231,1727243442773,-1000.0,0.0001267,2]
[339098234,1727243442782,-1000.0,0.0001267,2]
[339098237,1727243442791,-1000.0,0.0001267,2]
[339098240,1727243442800,-1000.0,0.0001267,2]
[339098242,1727243442809,-1000.0,0.0001267,2]
[339098245,1727243442818,-1000.0,0.0001267,2]
[339098248,1727243442827,-1000.0,0.0001267,2]
[339098250,1727243442837,-1000.0,0.0001267,2]
[339098252,1727243442846,-1000.0,0.0001267,2]
[339098254,1727243442855,-1000.0,0.0001267,2]
[339098256,1727243442864,-1000.0,0.0001267,2]
[339098258,1727243442880,-1000.0,0.0001267,2]
[339098261,1727243442889,-1000.0,0.0001267,2]
[339098263,1727243442898,-1000.0,0.0001267,2]
[339098264,1727243442907,-1000.0,0.0001267,2]
[339098266,1727243442917,-1000.0,0.0001267,2]
[339098268,1727243442926,-1000.0,0.0001267,2]
[339098270,1727243442934,-1000.0,0.0001267,2]
[339098272,1727243442943,-1000.0,0.0001267,2]
[339098274,1727243442952,-1000.0,0.0001267,2]
[339098276,1727243442961,-1000.0,0.0001267,2]
[339098278,1727243442970,-1000.0,0.0001267,2]
[339098280,1727243442979,-1000.0,0.0001267,2]
[339098282,1727243442988,-1000.0,0.0001267,2]
[339098283,1727243442997,-1000.0,0.0001267,2]
[339098285,1727243443006,-1000.0,0.0001267,2]
[339098287,1727243443014,-1000.0,0.0001267,2]
[339098289,1727243443023,-1000.0,0.0001267,2]
[339098291,1727243443033,-1000.0,0.0001267,2]
[339098292,1727243443041,-1000.0,0.0001267,2]
[339098294,1727243443051,-1000.0,0.0001267,2]
[339098296,1727243443059,-1000.0,0.0001267,2]
[339098298,1727243443068,-1000.0,0.0001267,2]
[339098300,1727243443078,-1000.0,0.0001267,2]
[339098302,1727243443089,-1000.0,0.0001267,2]
[339098304,1727243443100,-652.0,0.0001267,2]
[339098306,1727243443109,-500.0,0.00012673,2]
[339098308,1727243443119,-502.08720999,0.00012673,2]
[339098309,1727243443129,-502.09940959,0.00012673,2]
[339098311,1727243443139,-400.17299839,0.00012673,2]
[339098313,1727243443148,-3001.0,0.0001268,2]
[339098315,1727243443158,-1001.0,0.0001268,2]
[339098317,1727243443167,-1000.0,0.0001268,2]
[339098319,1727243443176,-1000.0,0.0001268,3]
[339098321,1727243443185,-151.0,0.0001268,2]
[339098323,1727243443194,-151.0,0.0001268,2]
[339098325,1727243443203,-151.166192,0.0001268,2]
[339098327,1727243443212,-151.0,0.0001268,2]
[339098329,1727243443221,-151.0,0.0001268,2]
[339098331,1727243443230,-152.011536,0.0001268,2]
[339098332,1727243443239,-151.0,0.0001268,2]
[339098335,1727243443256,-1214.92449,0.0001268,2]
[339098337,1727243443267,-1214.92449,0.0001268,2]
[339098340,1727243443280,-151.0,0.0001268,2]
[339098342,1727243443292,-197.907175,0.0001268,2]
[339098344,1727243443304,-197.907175,0.0001268,2]
[339098346,1727243443316,-503.526276,0.0001268,2]
[339098348,1727243443327,-210.504031,0.0001268,2]
[339098350,1727243443337,-151.0,0.0001268,2]
[339098353,1727243443348,-953.6556078,0.0001268,2]
[339098355,1727243443360,-161.51471724,0.00012685,2]
[339098357,1727243443374,-151.0,0.00012687,2]
[339098359,1727243443385,-179.549617,0.00012687,2]
[339098361,1727243443397,-179.549617,0.00012687,2]
[339098363,1727243443408,-151.0,0.00012687,2]
[339098365,1727243443420,-151.0,0.00012687,2]
[339098367,1727243443431,-566.57505678,0.00012687,2]
[339098370,1727243443443,-154.648024,0.00012689,2]
[339098372,1727243443455,-154.648024,0.00012689,2]
[339098374,1727243443467,-551.282772,0.00012689,2]
[339098376,1727243443479,-551.282772,0.00012689,2]
[339098378,1727243443490,-500.0,0.00012689,2]
[339098380,1727243443502,-500.0,0.00012689,2]
[339098383,1727243443513,-500.0,0.00012689,2]
[339098385,1727243443525,-500.0,0.00012689,2]
[339098387,1727243443536,-438.58490259,0.00012689,2]
[339098389,1727243443548,-500.0,0.00012689,2]
[339098391,1727243443559,-500.0,0.00012689,2]
[339098393,1727243443570,-500.0,0.00012689,2]
[339098395,1727243443581,-500.0,0.00012689,2]
[339098398,1727243443593,-4052.993623,0.00012689,2]
[339098400,1727243443604,-4052.993623,0.00012689,2]
[339098402,1727243443615,-846.726029,0.00012689,2]
[339098404,1727243443626,-846.726029,0.00012689,2]
[339098406,1727243443636,-151.0,0.00012689,2]
[339098408,1727243443646,-253.313757,0.00012689,2]
[339098410,1727243443657,-253.313757,0.00012689,2]
[339098412,1727243443668,-1005.0,0.0001269,2]
[339098414,1727243443679,-1000.0,0.0001269,2]
[339098416,1727243443690,-1000.0,0.0001269,3]
[339098418,1727243443702,-1000.0,0.0001269,2]
[339098421,1727243443714,-1000.0,0.0001269,2]
[339098423,1727243443735,-1000.0,0.0001269,3]
[339098425,1727243443746,-1000.0,0.0001269,2]
[339098427,1727243443758,-1000.0,0.0001269,3]
[339098429,1727243443770,-370355.01138084,0.0001269,2]
[339098431,1727243443783,-151.0,0.0001269,2]
[339098433,1727243443794,-389.965449,0.0001269,2]
[339098436,1727243443806,-389.965449,0.0001269,2]
[339098438,1727243443817,-151.0,0.0001269,2]
[339098440,1727243443828,-151.0,0.0001269,2]
[339098441,1727243443838,-152.484322,0.0001269,2]
[339098443,1727243443847,-151.170747,0.0001269,2]
[339098446,1727243443858,-151.0,0.0001269,2]
[339098448,1727243443871,-231.0,0.0001269,2]
[339098450,1727243443882,-151.539421,0.0001269,2]
[339098452,1727243443894,-151.0,0.0001269,2]
[339098454,1727243443905,-151.0,0.0001269,2]
[339098456,1727243443916,-151.0,0.0001269,2]
[339098458,1727243443926,-151.0,0.0001269,2]
[339098460,1727243443936,-151.0,0.0001269,2]
[339098463,1727243443947,-151.0,0.0001269,2]
[339098465,1727243443959,-151.0,0.0001269,2]
[339098467,1727243443970,-151.0,0.0001269,2]
[339098469,1727243443981,-1020.091936,0.0001269,2]
[339098471,1727243443994,-151.0,0.0001269,2]
[339098473,1727243444005,-151.0,0.0001269,2]
[339098475,1727243444015,-151.0,0.0001269,2]
[339098477,1727243444026,-225.321687,0.0001269,2]
[339098479,1727243444035,-1214.92449,0.0001269,2]
[339098481,1727243444045,-1214.92449,0.0001269,2]
[339098483,1727243444056,-1214.92449,0.0001269,2]
[339098485,1727243444067,-1214.92449,0.0001269,2]
[339098487,1727243444078,-151.0,0.0001269,2]
[339098490,1727243444089,-197.907175,0.0001269,2]
[339098492,1727243444099,-197.907175,0.0001269,2]
[339098494,1727243444111,-197.907175,0.0001269,2]
[339098496,1727243444123,-197.907175,0.0001269,2]
[339098498,1727243444134,-151.0,0.0001269,2]
[339098500,1727243444145,-503.526276,0.0001269,2]
[339098502,1727243444155,-503.526276,0.0001269,2]
[339098504,1727243444166,-503.526276,0.0001269,2]
[339098506,1727243444177,-503.526276,0.0001269,2]
[339098507,1727243444189,-154.648024,0.0001269,2]
[339098508,1727243444200,-154.648024,0.0001269,2]
[339098509,1727243444210,-154.648024,0.0001269,2]
[339098510,1727243444221,-154.648024,0.0001269,2]
[339098511,1727243444232,-551.282772,0.0001269,2]
[339098512,1727243444242,-551.282772,0.0001269,2]
[339098513,1727243444253,-551.282772,0.0001269,2]
[339098514,1727243444263,-551.282772,0.0001269,2]
[339098515,1727243444274,-821.274905,0.0001269,2]
[339098516,1727243444284,-821.274905,0.0001269,2]
[339098517,1727243444295,-821.274905,0.0001269,2]
[339098518,1727243444306,-821.274905,0.0001269,2]
[339098519,1727243444316,-821.274905,0.0001269,2]
[339098520,1727243444328,-821.274905,0.0001269,2]
[339098521,1727243444338,-180.800773,0.0001269,2]
[339098522,1727243444349,-268.233151,0.0001269,2]
[339098523,1727243444359,-268.233151,0.0001269,2]
[339098524,1727243444371,-268.233151,0.0001269,2]
[339098525,1727243444383,-268.233151,0.0001269,2]
[339098526,1727243444393,-268.233151,0.0001269,2]
[339098527,1727243444404,-268.233151,0.0001269,2]
[339098528,1727243444414,-152.672578,0.0001269,2]
[339098529,1727243444425,-152.672578,0.0001269,2]
[339098530,1727243444436,-152.672578,0.0001269,2]
[339098531,1727243444446,-178.203967,0.0001269,2]
[339098532,1727243444457,-178.203967,0.0001269,2]
[339098533,1727243444467,-178.203967,0.0001269,2]
[339098534,1727243444477,-152.672578,0.0001269,2]
[339098535,1727243444488,-151.0,0.0001269,2]
[339098536,1727243444498,-152.672578,0.0001269,2]
[339098537,1727243444508,-151.0,0.0001269,2]
[339098538,1727243444519,-152.672578,0.0001269,2]
[339098539,1727243444529,-274.641976,0.0001269,2]
[339098540,1727243444539,-178.203967,0.0001269,2]
[339098541,1727243444550,-178.203967,0.0001269,2]
[339098542,1727243444560,-178.203967,0.0001269,2]
[339098543,1727243444572,-151.0,0.0001269,2]
[339098544,1727243444582,-151.0,0.0001269,2]
[339098545,1727243444594,-151.0,0.0001269,2]
[339098546,1727243444605,-1113.32578,0.0001269,2]
[339098547,1727243444616,-1113.32578,0.0001269,2]
[339098548,1727243444628,-1113.32578,0.0001269,2]
[339098549,1727243444639,-1113.32578,0.0001269,2]
[339098550,1727243444649,-1113.32578,0.0001269,2]
[339098551,1727243444660,-1113.32578,0.0001269,2]
[339098552,1727243444671,-151.0,0.0001269,2]
[339098553,1727243444682,-151.0,0.0001269,2]
[339098554,1727243444693,-151.0,0.0001269,2]
[339098555,1727243444704,-151.0,0.0001269,2]
[339098556,1727243444715,-151.0,0.0001269,2]
[339098557,1727243444726,-151.0,0.0001269,2]
[339098559,1727243444737,-151.0,0.0001269,2]
[339098561,1727243444748,-210.344566,0.0001269,2]
[339098562,1727243444760,-179.549617,0.0001269,2]
[339098564,1727243444772,-179.549617,0.0001269,2]
[339098567,1727243444783,-179.549617,0.0001269,2]
[339098569,1727243444793,-179.549624,0.0001269,2]
[339098571,1727243444805,-941.69884,0.0001269,2]
[339098573,1727243444816,-941.69884,0.0001269,2]
[339098575,1727243444826,-941.69884,0.0001269,2]
[339098577,1727243444836,-941.69884,0.0001269,2]
[339098579,1727243444846,-151.0,0.0001269,2]
[339098581,1727243444857,-941.69884,0.0001269,2]
[339098584,1727243444867,-941.698846,0.0001269,2]
[339098586,1727243444880,-151.0,0.0001269,2]
[339098588,1727243444891,-151.0,0.0001269,2]
[339098590,1727243444902,-151.0,0.0001269,2]
[339098592,1727243444912,-4052.993623,0.0001269,2]
[339098594,1727243444923,-4052.993624,0.0001269,2]
[339098596,1727243444933,-151.0,0.0001269,2]
[339098598,1727243444945,-151.0,0.0001269,2]
[339098601,1727243444955,-846.726029,0.0001269,2]
[339098603,1727243444966,-846.726024,0.0001269,2]
[339098605,1727243444976,-151.0,0.0001269,2]
[339098607,1727243444986,-253.313757,0.0001269,2]
[339098609,1727243444996,-253.313756,0.0001269,2]
[339098611,1727243445007,-953.6556078,0.0001269,2]
[339098613,1727243445017,-953.6556078,0.0001269,2]
[339098616,1727243445028,-151.0,0.00012694,2]
[339098618,1727243445039,-151.0,0.00012694,2]
[339098620,1727243445049,-151.0,0.00012694,2]
[339098622,1727243445059,-179.496654,0.00012694,2]
[339098624,1727243445070,-151.0,0.00012694,2]
[339098626,1727243445082,-151.0,0.00012694,2]
[339098628,1727243445092,-151.0,0.00012694,2]
[339098630,1727243445102,-1020.091936,0.00012694,2]
[339098632,1727243445113,-151.0,0.00012694,2]
[339098634,1727243445123,-290.160364,0.00012694,2]
[339098637,1727243445133,-1214.92449,0.00012694,2]
[339098639,1727243445144,-1214.92449,0.00012694,2]
[339098641,1727243445154,-151.0,0.00012694,2]
[339098643,1727243445164,-151.0,0.00012694,2]
[339098645,1727243445175,-197.907175,0.00012694,2]
[339098647,1727243445186,-197.907175,0.00012694,2]
[339098649,1727243445196,-151.0,0.00012694,2]
[339098651,1727243445206,-151.0,0.00012694,2]
[339098653,1727243445216,-503.526276,0.00012694,2]
[339098656,1727243445227,-503.526277,0.00012694,2]
[339098658,1727243445237,-154.648024,0.00012694,2]
[339098660,1727243445247,-154.648023,0.00012694,2]
[339098662,1727243445257,-551.282772,0.00012694,2]
[339098664,1727243445267,-551.282766,0.00012694,2]
[339098666,1727243445278,-821.274905,0.00012694,2]
[339098668,1727243445288,-821.274905,0.00012694,2]
[339098670,1727243445299,-821.274905,0.00012694,2]
[339098672,1727243445309,-821.274905,0.00012694,2]
[339098673,1727243445320,-268.233151,0.00012694,2]
[339098696,1727243445545,-268.233151,0.00012694,2]
[339098699,1727243445561,-268.233151,0.00012694,2]
[339098701,1727243445572,-268.233151,0.00012694,2]
[339098703,1727243445582,-152.672578,0.00012694,2]
[339098705,1727243445591,-152.672578,0.00012694,2]
[339098707,1727243445600,-178.203967,0.00012694,2]
[339098709,1727243445610,-178.203967,0.00012694,2]
[339098711,1727243445619,-152.672578,0.00012694,2]
[339098714,1727243445628,-152.672578,0.00012694,2]
[339098716,1727243445637,-178.203967,0.00012694,2]
[339098718,1727243445647,-178.203967,0.00012694,2]
[339098720,1727243445656,-151.0,0.00012694,2]
[339098722,1727243445665,-151.0,0.00012694,2]
[339098724,1727243445675,-1113.32578,0.00012694,2]
[339098727,1727243445683,-1113.32578,0.00012694,2]
[339098729,1727243445692,-1113.32578,0.00012694,2]
[339098731,1727243445702,-1113.32578,0.00012694,2]
[339098733,1727243445711,-151.0,0.00012694,2]
[339098735,1727243445720,-151.0,0.00012694,2]
[339098737,1727243445730,-9758.0792403,0.00012694,2]
[339098739,1727243445739,-4532.60045424,0.00012697,2]
[339098741,1727243445749,-152.073481,0.00012698,2]
[339098743,1727243445759,-152.701914,0.00012698,2]
[339098745,1727243445768,-151.0,0.00012698,2]
[339098747,1727243445778,-151.0,0.00012698,2]
[339098749,1727243445787,-151.0,0.00012698,2]
[339098751,1727243445797,-151.333154,0.00012698,2]
[339098753,1727243445806,-1020.091936,0.00012698,2]
[339098755,1727243445815,-151.0,0.00012698,2]
[339098757,1727243445824,-1214.92449,0.00012698,2]
[339098759,1727243445834,-1214.92449,0.00012698,2]
[339098761,1727243445843,-171.375767,0.00012698,2]
[339098763,1727243445852,-197.907175,0.00012698,2]
[339098765,1727243445861,-197.907175,0.00012698,2]
[339098767,1727243445871,-151.0,0.00012698,2]
[339098768,1727243445881,-821.274905,0.00012698,2]
[339098770,1727243445890,-821.274901,0.00012698,2]
[339098772,1727243445899,-268.233151,0.00012698,2]
[339098774,1727243445908,-268.233151,0.00012698,2]
[339098776,1727243445918,-152.672578,0.00012698,2]
[339098778,1727243445927,-178.203967,0.00012698,2]
[339098780,1727243445936,-152.67257,0.00012698,2]
[339098782,1727243445946,-178.203967,0.00012698,2]
[339098783,1727243445955,-151.0,0.00012698,2]
[339098785,1727243445965,-1113.32578,0.00012698,2]
[339098787,1727243445974,-1113.32578,0.00012698,2]
[339098789,1727243445982,-151.0,0.00012698,2]
[339098791,1727243445992,-356776.66683353,0.00012699,2]
[339098793,1727243446001,-151.0,0.00012699,2]
[339098795,1727243446011,-389.965449,0.00012699,2]
[339098797,1727243446020,-389.965449,0.00012699,2]
[339098799,1727243446029,-151.0,0.00012699,2]
[339098801,1727243446038,-151.0,0.00012699,2]
[339098803,1727243446047,-151.0,0.00012699,2]
[339098805,1727243446056,-151.0,0.00012699,2]
[339098807,1727243446066,-151.0,0.00012699,2]
[339098809,1727243446074,-151.0,0.00012699,2]
[339098810,1727243446083,-151.0,0.00012699,2]
[339098812,1727243446092,-151.0,0.00012699,2]
[339098814,1727243446102,-151.0,0.00012699,2]
[339098816,1727243446111,-151.0,0.00012699,2]
[339098818,1727243446122,-151.546193,0.00012699,2]
[339098820,1727243446135,-672.65,0.00012699,2]
[339098822,1727243446145,-495.5029963,0.00012699,2]
[339098824,1727243446155,-1020.091936,0.00012699,2]
[339098826,1727243446165,-1020.091936,0.00012699,2]
[339098828,1727243446174,-151.0,0.00012699,2]
[339098830,1727243446183,-151.694054,0.00012699,2]
[339098832,1727243446193,-1020.091936,0.00012699,2]
[339098834,1727243446203,-1020.091936,0.00012699,2]
[339098836,1727243446212,-151.0,0.00012699,2]
[339098838,1727243446221,-294.992481,0.00012699,2]
[339098840,1727243446231,-1214.92449,0.00012699,2]
[339098842,1727243446240,-1214.924497,0.00012699,2]
[339098843,1727243446250,-197.907175,0.00012699,2]
[339098845,1727243446259,-197.907175,0.00012699,2]
[339098847,1727243446268,-197.907175,0.00012699,2]
[339098849,1727243446278,-197.907175,0.00012699,2]
[339098851,1727243446287,-151.0,0.00012699,2]
[339098853,1727243446297,-151.0,0.00012699,2]
[339098855,1727243446306,-268.233151,0.00012699,2]
[339098857,1727243446315,-268.233155,0.00012699,2]
[339098859,1727243446325,-178.203967,0.00012699,2]
[339098861,1727243446333,-178.203959,0.00012699,2]
[339098863,1727243446342,-151.0,0.00012699,2]
[339098865,1727243446351,-1113.32578,0.00012699,2]
[339098867,1727243446360,-1113.325773,0.00012699,2]
[339098869,1727243446369,-273.22049,0.00012699,2]
[339098871,1727243446382,-2000.0,0.00012699,2]
[339098872,1727243446391,-262.09831722,0.00012699,2]
[339098874,1727243446400,-4224.421469,0.00012699,2]
[339098876,1727243446409,-170286.71861002,0.000127,2]
[339098903,1727243446660,-1731.263016,0.000126,2]
[339098905,1727243446670,-1731.263016,0.0001267,2]
[339098907,1727243446682,-1731.263016,0.0001267,2]
[339098909,1727243446691,-4918942.56513371,0.000127,2]
[339098924,1727243446852,-450.076044,0.00012587,2]
[339100280,1727243592289,176.63,9.589e-05,2]
[339100281,1727243687938,3672.46739554,0.00021,60]
[339100282,1727243790841,330.0256708,0.00022,120]
[339100283,1727243812491,319.64,9.739e-05,2]
[339100284,1727243861273,5000.0,0.00021,60]
[339100285,1727244113217,1050.0,0.00011,2]
[339100286,1727244343076,303.65,9.652e-05,2]
[339100287,1727244347055,176.63,9.589e-05,2]
[339100299,1727244632075,-150.0,0.00011416,2]
[339100300,1727244632085,-153.41658733,0.00011416,2]
[339100301,1727244632095,-853.3,0.00011587,2]
[339100302,1727244632105,-250.0,0.00011596,2]
[339100303,1727244632114,-700.96,0.000116,2]
[339100304,1727244632123,-185.97,0.0001161,2]
[339100305,1727244632132,-1000.0,0.00011624,2]
[339100306,1727244632141,-403.73,0.0001165,2]
[339100307,1727244632150,-702.62341267,0.00011699,2]
[339100308,1727244632215,-1192.4699104,0.00011699,2]
[339100309,1727244632227,-5979.67007693,0.00011699,2]
[339100310,1727244632240,-303.65,0.00011916,2]
[339100311,1727244632249,-602.65,0.00011916,2]
[339100312,1727244632259,-987.493046,0.00012389,2]
[339100313,1727244632268,-987.493045,0.00012389,2]
[339100314,1727244632277,-261.23,0.00012389,2]
[339100315,1727244632287,-1052.58,0.00012389,2]
[339100316,1727244632296,-369.01,0.000124,2]
[339100317,1727244632306,-321.73,0.000124,2]
[339100318,1727244632315,-435.56,0.000124,2]
[339100319,1727244632325,-150.0,0.000124,2]
[339100320,1727244632335,-150.0,0.00012499,2]
[339100321,1727244632344,-473.035,0.000125,2]
[339100322,1727244632353,-5682.0,0.000125,2]
[339100323,1727244632362,-426.96,0.000125,2]
[339100324,1727244632371,-150.0,0.000125,2]
[339100325,1727244632380,-760.74,0.000125,2]
[339100326,1727244632389,-753.64,0.000125,2]
[339100327,1727244632398,-306.03,0.000125,2]
[339100328,1727244632407,-422.91,0.000125,2]
[339100329,1727244632416,-301.35,0.000125,2]
[339100330,1727244632425,-150.0,0.000125,2]
[339100331,1727244632434,-753.64,0.000125,2]
[339100332,1727244632443,-150.0,0.000125,2]
[339100333,1727244632452,-361.38,0.000125,2]
[339100334,1727244632463,-422.91,0.000125,2]
[339100335,1727244632472,-150.0,0.000125,2]
[339100336,1727244632481,-753.64,0.000125,2]
[339100337,1727244632490,-422.91,0.000125,2]
[339100338,1727244632499,-150.0,0.00012513,2]
[339100339,1727244632508,-987.493046,0.00012544,2]
[339100340,1727244632516,-987.493045,0.00012544,2]
[339100342,1727244632525,-225.0261748,0.00012592,2]
[339100344,1727244632534,-500.0,0.00012598,2]
[339100346,1727244632542,-15163.634,0.000126,2]
[339100347,1727244632551,-106.93117575,0.000126,2]
[339100348,1727244632562,-295.4294,0.000126,2]
[339100349,1727244632574,-160.85313725,0.000126,2]
[339100350,1727244632583,-563.213713,0.000126,2]
[339100352,1727244632592,-151.0,0.000126,2]
[339100353,1727244632601,-481.04921238,0.000126,2]
[339100354,1727244632610,-396.88222633,0.000126,2]
[339100355,1727244632622,-7103.11777367,0.000126,2]
[339100356,1727244632631,-126187.17301695,0.000126,2]
[339100357,1727244632640,-151.81102243,0.000126,2]
[339100358,1727244632649,-151.81102243,0.000126,2]
[339100359,1727244632658,-152.31,0.000126,2]
[339100360,1727244632669,-172.7085728,0.000126,2]
[339100361,1727244632679,-172.7085728,0.000126,2]
[339100362,1727244632687,-172.7085728,0.000126,2]
[339100363,1727244632696,-172.7085728,0.000126,2]
[339100364,1727244632707,-172.7085728,0.000126,2]
[339100365,1727244632716,-172.7085728,0.000126,2]
[339100366,1727244632726,-172.7085728,0.000126,2]
[339100367,1727244632735,-172.7085728,0.000126,2]
[339100368,1727244632744,-172.7085728,0.000126,2]
[339100369,1727244632753,-172.7085728,0.000126,2]
[339100370,1727244632762,-172.7085728,0.000126,2]
[339100371,1727244632771,-172.7085728,0.000126,2]
[339100372,1727244632781,-172.7085728,0.000126,2]
[339100373,1727244632791,-172.7085728,0.000126,2]
[339100374,1727244632801,-172.7085728,0.000126,2]
[339100375,1727244632810,-172.7085728,0.000126,2]
[339100376,1727244632819,-172.7085728,0.000126,2]
[339100377,1727244632828,-172.7085728,0.000126,2]
[339100378,1727244632837,-172.7085728,0.000126,2]
[339100379,1727244632846,-173.2,0.000126,2]
[339100380,1727244632855,-234.94312431,0.000126,2]
[339100381,1727244632864,-234.94312431,0.000126,2]
[339100382,1727244632873,-234.94312431,0.000126,2]
[339100383,1727244632883,-234.94312431,0.000126,2]
[339100384,1727244632893,-234.94312431,0.000126,2]
[339100385,1727244632902,-234.94312431,0.000126,2]
[339100386,1727244632911,-234.94312431,0.000126,2]
[339100387,1727244632920,-234.94312431,0.000126,2]
[339100388,1727244632930,-234.94312431,0.000126,2]
[339100389,1727244632940,-234.94312431,0.000126,2]
[339100390,1727244632950,-234.94312431,0.000126,2]
[339100391,1727244632962,-234.94312431,0.000126,2]
[339100392,1727244632971,-234.94312431,0.000126,2]
[339100393,1727244632981,-234.94312431,0.000126,2]
[339100394,1727244632992,-234.94312431,0.000126,2]
[339100395,1727244633001,-234.94312431,0.000126,2]
[339100396,1727244633010,-234.94312431,0.000126,2]
[339100397,1727244633019,-234.94312431,0.000126,2]
[339100398,1727244633028,-234.94312431,0.000126,2]
[339100399,1727244633038,-235.44,0.000126,2]
[339100400,1727244633047,-236.45909106,0.000126,2]
[339100401,1727244633056,-1218.0,0.000126,2]
[339100402,1727244633066,-664.00902889,0.000126,2]
[339100403,1727244633075,-421.90509486,0.00012602,2]
[339100404,1727244633084,-8079.95911221,0.00012613,2]
[339100405,1727244633096,-1765.2517191,0.00012613,2]
[339100406,1727244633107,-582.92504737,0.00012613,2]
[339100407,1727244633119,-4826.92412132,0.00012613,2]
[339100408,1727244633129,-291.40023838,0.0001262,2]
[339100409,1727244633140,-262.28741597,0.0001262,2]
[339100410,1727244638307,-5315.31234565,0.0001262,2]
[339100411,1727244638319,-155.464,0.0001262,2]
[339100412,1727244638330,-669.51845758,0.0001262,2]
[339100413,1727244638691,-483.40554242,0.0001262,2]
[339100414,1727244638703,-13496.0,0.0001262,2]
[339100415,1727244638715,-1082.813,0.0001262,2]
[339100416,1727244638726,-563.213713,0.0001267,2]
[339100417,1727244638737,-563.213713,0.0001267,2]
[339100418,1727244638750,-563.213713,0.0001267,2]
[339100420,1727244638760,-563.213713,0.0001267,2]
[339100421,1727244638773,-563.213713,0.0001267,2]
[339100422,1727244638784,-563.213713,0.0001267,2]
[339100423,1727244638795,-563.213713,0.0001267,2]
[339100424,1727244638807,-563.213713,0.0001267,2]
[339100425,1727244638818,-563.213713,0.0001267,2]